Cogmind - Beta 14 *** ADVENTURER MODE // 2024.10.22 @ 17:31:59 // Winter2019/RPGLIKE Player: Gallgagger Result: Self-destructed Performance ------------- Evolutions (0) 0 Regions Visited (4) 800 Robots Destroyed (42) 210 Value Destroyed (1037) 1037 Prototype IDs (24) 480 Alien Tech Used (0) 0 Bonus (300) 300 TOTAL SCORE: 2827 Bonus ------- Aligned with FarCom 300 Cogmind --------- Core Integrity 600/600 Matter 292/300 Energy 200/200 System Corruption 18% Temperature Cool (0) Movement Rolling (105) Ox1 Location -9/Mines Parts ------- > --- POWER (2) -------- Light Ion Engine Light Ion Engine > --- PROPULSION (2) --- Wheel Compact Wheel > --- UTILITY (3) ------ Experimental Sensor Array Hardened Light Armor Plating Hardened Light Armor Plating > --- WEAPON (2) ------- Latent Energy Streamer > --- INVENTORY (1) ---- Grenade Launcher Peak State ------------ > --- POWER ------------ Light Ion Engine Light Ion Engine > --- PROPULSION ------- Wheel Compact Wheel > --- UTILITY ---------- Experimental Sensor Array Hardened Light Armor Plating Hardened Light Armor Plating > --- WEAPON ----------- Latent Energy Streamer > --- INVENTORY -------- (None) [Rating: 27] Favorites ----------- Power Light Ion Engine Engine Light Ion Engine Propulsion Wheel Wheel Wheel Utility Hardened Light Armor Plating Device Experimental Sensor Array Protection Hardened Light Armor Plating Weapon EM Shotgun Energy Gun EM Shotgun Energy Cannon Latent Energy Streamer Ballistic Gun Assault Rifle Build | -11 -10 -10 -10 -9 ------- Run | Yrd Mat Min Exi Min Slots Evolved 5 | 4 . 1 . . Power 1 | 1 . . . . Propulsion 1 | 1 . . . . Utility 2 | 1 . 1 . . Weapon 1 | 1 . . . . Parts Attached 13 | 7 4 1 1 . Power 2 | 2 . . . . Engine 2 | 2 . . . . Core . | . . . . . Reactor . | . . . . . Propulsion 2 | 2 . . . . Treads . | . . . . . Leg . | . . . . . Wheel 2 | 2 . . . . Hover . | . . . . . Flight . | . . . . . Utility 3 | . 2 1 . . Device 1 | . . 1 . . Storage . | . . . . . Processor . | . . . . . Hackware . | . . . . . Protection 2 | . 2 . . . Artifact . | . . . . . Weapon 6 | 3 2 . 1 . Energy Gun 3 | 1 2 . . . Energy Cannon 1 | . . . 1 . Ballistic Gun 2 | 2 . . . . Ballistic Cannon . | . . . . . Launcher . | . . . . . Special Weapon . | . . . . . Impact Weapon . | . . . . . Slashing Weapon . | . . . . . Piercing Weapon . | . . . . . Special Melee Weapon . | . . . . . Unidentified Prototypes 1 | . . 1 . . Parts Lost . | . . . . . Power . | . . . . . Propulsion . | . . . . . Utility . | . . . . . Weapon . | . . . . . Highest Loss Streak . | . . . . . To Critical Strikes . | . . . . . Average Slot Usage (%) 96 | . 99 99 93 88 Engine 23 | . 25 22 22 22 Wheel 23 | . 25 22 22 22 Device 5 | . . 9 11 11 Protection 23 | . 24 22 22 22 Energy Gun 17 | . 24 22 10 . Energy Cannon 3 | . . . 5 11 Peak Build Rating 27 | 6 12 21 27 27 Average Rating 18 | 4 11 20 24 27 On Entrance 13 | . 6 12 21 27 Naked Turns . | . . . . . Heaviest Build 27 | 9 22 23 27 27 Greatest Support 26 | 26 26 26 26 26 Greatest Overweight (x) 1 | . . . 1 1 Average Overweight (x) . | . . . . 1 Largest Inventory Capacity 1 | . . . . 1 Average Capacity . | . . . . . Most Carried 1 | . . . . 1 Average Carried . | . . . . . Final Capacity 1 | . . . . 1 Final Carried 1 | . . . . 1 Class Distribution -------------------- 93% | Hacker-Mutant 6% | Mutant Dominant Class ---------------- Hacker-Mutant | -10/Materials Hacker-Mutant | -10/Mines Hacker-Mutant | -10/Exiles Hacker-Mutant | -9/Mines Resources | -11 -10 -10 -10 -9 ----------- Run | Yrd Mat Min Exi Min Matter Collected 367 | 270 40 10 . 47 Remotely . | . . . . . Salvage Created 1241 | . 904 153 . 184 Parts 96 | . 59 15 . 22 Haulers Intercepted 2 | . 2 . . . Recyclers Shooed . | . . . . . Parts Field Recycled . | . . . . . Retrieved Matter . | . . . . . Parts Self-Destructed . | . . . . . Prevented . | . . . . . Kills | -11 -10 -10 -10 -9 ------- Run | Yrd Mat Min Exi Min Combat Hostiles Destroyed 33 | . 17 7 . 9 Guns 23 | . 17 6 . . AOE 9 | . . 1 . 8 Classes Destroyed 9 | . 6 . . 3 Worker 1 | . 1 . . . Builder 2 | . 2 . . . Tunneler 1 | . . . . 1 Hauler 2 | . 2 . . . Watcher 3 | . 3 . . . Swarmer 12 | . 3 5 . 4 Grunt 18 | . 14 2 . 2 Brawler 1 | . . . . 1 Sentry 2 | . . . . 2 Best Kill Streak 5 | . 5 3 . 4 Combat Bots Only 4 | . 4 3 . 4 Max Kills in Single Turn 2 | . 2 2 . 2 Gunslinging 1 | . 1 1 . . Exploded 2 | . . 1 . 2 Melee . | . . . . . Uniques/NPCs Destroyed . | . . . . . Combat | -11 -10 -10 -10 -9 -------- Run | Yrd Mat Min Exi Min Hostile Shots Fired 98 | . 34 23 . 41 Missed 39 | . 13 8 . 18 Damage Taken 552 | . 236 109 . 207 Core 339 | . 165 63 . 111 Absorbed by Shields . | . . . . . Redirected to Core 284 | . 134 57 . 93 Ignored by Resistances 174 | . 73 35 . 66 Core Remaining (%) 100 | 100 . . . . Volleys Fired 54 | . 36 10 . 8 Largest 2 | . 2 2 . 1 Hottest 90 | . 90 90 . 60 Shots Fired 102 | . 72 20 . 10 Gun 92 | . 72 20 . . Cannon 10 | . . . . 10 Launcher . | . . . . . Special . | . . . . . Kinetic . | . . . . . Thermal . | . . . . . Explosive . | . . . . . Electromagnetic 102 | . 72 20 . 10 Robot Hit Streak 31 | . 31 16 . 5 Robot Miss Streak 4 | . 4 2 . 2 Penetration Max . | . . . . . Secondary Targets 2 | . 1 1 . . Max Gunslinging Chain 1 | . 1 1 . . Shots Hit Robots 84 | . 59 19 . 6 Core Hits 73 | . 44 14 . 15 Critical Kills . | . . . . . Critical Parts Destroyed . | . . . . . Critical Strikes . | . . . . . Melee Attacks . | . . . . . Impact . | . . . . . Slashing . | . . . . . Piercing . | . . . . . Sneak Attacks . | . . . . . Combat Hostiles . | . . . . . Follow-up Attacks . | . . . . . Damage Inflicted 2117 | . 1067 333 . 717 Guns 1285 | . 1028 257 . . Cannons 37 | . . . . 37 Explosions 795 | . 39 76 . 680 Melee . | . . . . . Ramming . | . . . . . Kinetic . | . . . . . Thermal 135 | . 39 76 . 20 Explosive . | . . . . . Electromagnetic 1982 | . 1028 257 . 697 Impact . | . . . . . Slashing . | . . . . . Piercing . | . . . . . Highest Corruption 18 | . . . . 18 Average Corruption 8 | . . . . 8 Corruption Purged . | . . . . . Corruption Blocked . | . . . . . Effects 15 | . . . . 15 Message Errors 3 | . . . . 3 Matter Fused 6 | . . . . 6 Heat Flow Errors 1 | . . . . 1 Data Loss (minor) 2 | . . . . 2 Misfires 2 | . . . . 2 Alerts 1 | . . . . 1 Overload Shots . | . . . . . Overflow Damage 3 | . . . . 3 Projectiles . | . . . . . Explosions 3 | . . . . 3 Melee . | . . . . . Knockbacks . | . . . . . Impact . | . . . . . Kinetic . | . . . . . Secondary . | . . . . . Self-Inflicted Damage 27 | . 27 . . . Shots 1 | . 1 . . . Rammed . | . . . . . Targets Rammed . | . . . . . Kicked . | . . . . . Crushed . | . . . . . Highest Temperature 275 | . 275 . . 57 Average Temperature 155 | . 160 . . 33 Received Heat Transfer 267 | . 123 36 . 108 Effects 2 | . 2 . . . Interference 2 | . 2 . . . Siege Activations . | . . . . . Robots Corrupted 1 | . . . . 1 Combat Hostiles 1 | . . . . 1 Parts Fried 13 | . 4 2 . 7 Impact Corruptions . | . . . . . Robots Melted . | . . . . . Combat Hostiles . | . . . . . Parts Melted . | . . . . . Heat Transferred 150 | . . 100 . 50 Parts Sabotaged . | . . . . . Parts Stolen . | . . . . . Parts Stripped . | . . . . . Power Chain Reactions 3 | . 1 1 . 1 Latent Energy Used 748 | . . . . 748 LE Corruption 18 | . . . . 18 Alert | -11 -10 -10 -10 -9 ------- Run | Yrd Mat Min Exi Min Peak Influence 342 | . 342 185 . 174 Initial 65 | . . 65 . . Average 146 | . 195 92 . 123 Maximum Alert Level 1 | . 1 . . . Low Security (%) 78 | 100 54 100 . 100 Level 1 21 | . 45 . . . Level 2 . | . . . . . Level 3 . | . . . . . Level 4 . | . . . . . Level 5 . | . . . . . High Security . | . . . . . Max Security . | . . . . . Squads Dispatched 4 | . 4 . . . Investigation 4 | . 4 . . . Extermination . | . . . . . Reinforcement . | . . . . . Assault . | . . . . . Garrison . | . . . . . Intercept . | . . . . . Searches Triggered . | . . . . . Construction Impeded . | . . . . . Haulers Reinforced . | . . . . . Active Scanning Responses . | . . . . . Cargo Convoy Interrupts . | . . . . . Stealth | -11 -10 -10 -10 -9 --------- Run | Yrd Mat Min Exi Min Distress Signals . | . . . . . Communications Jammed . | . . . . . Distress Signals . | . . . . . Times Spotted 42 | . 26 8 . 8 Peak Tracking Total 4 | . 4 3 . 3 Tactical Retreats 4 | . 3 . . 1 Traps | -11 -10 -10 -10 -9 ------- Run | Yrd Mat Min Exi Min Traps Triggered 1 | . 1 . . . Indirectly . | . . . . . Trap Hack Attempts . | . . . . . Triggered . | . . . . . Disarmed 1 | . 1 . . . Reprogrammed . | . . . . . Reused . | . . . . . Traps Extracted . | . . . . . Installed . | . . . . . Triggered . | . . . . . Machines | -11 -10 -10 -10 -9 ---------- Run | Yrd Mat Min Exi Min Machines Disabled 3 | . . . . 3 Max in Single Turn 2 | . . . . 2 Machines Repaired . | . . . . . Machines Dismantled . | . . . . . Machines Sabotaged 1 | . 1 . . . Overloaded Fab Kills . | . . . . . Hacking | -11 -10 -10 -10 -9 --------- Run | Yrd Mat Min Exi Min Machines Accessed 9 | . 8 . 1 . Terminals 8 | . 8 . . . Fabricators . | . . . . . Repair Stations . | . . . . . Recycling Units . | . . . . . Scanalyzers . | . . . . . Garrison Access . | . . . . . Total Hacks 22 | . 21 . 1 . Successful 18 | . 17 . 1 . Failed 3 | . 3 . . . Catastrophic . | . . . . . Database Lockouts 1 | . 1 . . . Manual 19 | . 18 . 1 . Terminals 21 | . 21 . . . Fabricators . | . . . . . Repair Stations . | . . . . . Recycling Units . | . . . . . Scanalyzers . | . . . . . Garrison Access . | . . . . . Terminal Hacks 6 | . 5 . 1 . Robot Analysis 2 | . 2 . . . Locate Traps 1 | . 1 . . . Disarm Traps 2 | . 2 . . . Derelict Proto ID Bank 1 | . . . 1 . Fabricator Hacks . | . . . . . Repair Station Hacks . | . . . . . Recycling Unit Hacks . | . . . . . Scanalyzer . | . . . . . Garrison Access Hacks . | . . . . . Unauthorized Hacks 12 | . 12 . . . Terminals 12 | . 12 . . . Botnet 8 | . 8 . . . Disrupt 1 | . 1 . . . Sabotage 3 | . 3 . . . Fabricators . | . . . . . Repair Stations . | . . . . . Recycling Units . | . . . . . Scanalyzers . | . . . . . Garrison Access . | . . . . . Data Cores Recovered . | . . . . . Used . | . . . . . Hacking Detections 4 | . 4 . . . Full Trace Events . | . . . . . Feedback Events . | . . . . . Feedback Blocked . | . . . . . Robot Schematics Acquired . | . . . . . Robots Built . | . . . . . Authchips . | . . . . . Time . | . . . . . Total Robot Build Rating . | . . . . . Part Schematics Acquired . | . . . . . Parts Built . | . . . . . Authchips . | . . . . . Time . | . . . . . Total Part Build Rating . | . . . . . Parts Repaired . | . . . . . Time . | . . . . . Parts Recycled . | . . . . . Recycled Matter . | . . . . . Retrieved Matter . | . . . . . Retrieved Components . | . . . . . Parts Scanalyzed . | . . . . . Part Schematics Acquired . | . . . . . Parts Damaged . | . . . . . Bothacking | -11 -10 -10 -10 -9 ------------ Run | Yrd Mat Min Exi Min Used RIF Installer . | . . . . . Robots Hacked . | . . . . . Non-combat . | . . . . . Combat . | . . . . . Robot Hacks Applied . | . . . . . Relay Couplers Released . | . . . . . Fabnet Peak Effective % . | . . . . . Robots Rewired 1 | . 1 . . . Allies Hacked . | . . . . . Hacks Repelled . | . . . . . Allies | -11 -10 -10 -10 -9 -------- Run | Yrd Mat Min Exi Min Total Allies 1 | . 1 . . . Largest Group . | . . . . . Highest-Rated Group . | . . . . . Highest-Rated Ally . | . . . . . Total Orders . | . . . . . Ally Attacks 1 | . 1 . . . Total Damage 10 | . 10 . . . Kills . | . . . . . Allies Corrupted . | . . . . . Allies Melted . | . . . . . Intel | -11 -10 -10 -10 -9 ------- Run | Yrd Mat Min Exi Min Robot Analysis Total 2 | . 2 . . . Derelict Logs Recovered 4 | . . 2 . 2 Drone Launches . | . . . . . Drone Recoveries . | . . . . . Exploration | -11 -10 -10 -10 -9 ------------- Run | Yrd Mat Min Exi Min Turns Passed 2333 | 48 1008 550 212 515 Spaces Moved 2049 | 43 868 537 216 385 Core 1 | 1 . . . . Treads . | . . . . . Legs . | . . . . . Wheels 2048 | 42 868 537 216 385 Hover . | . . . . . Flight . | . . . . . Fastest Speed 50 | 50 90 90 90 105 Average Speed 93 | 88 90 90 97 105 Slowest Speed 105 | 90 90 90 105 105 Overloaded Moves . | . . . . . Propulsion Burnouts . | . . . . . Robots Hopped . | . . . . . Cave-ins Triggered . | . . . . . Exploration Rate (%) 60 | 4 88 95 43 70 Regions Visited 4 Branch Regions 3 Pre-discovered Areas 1 | . . . . 1 Known Exits Taken . | . . . . . Unknown Exits Taken 4 | 1 1 1 1 . Scrap Searched 3 | . . 1 . 2 Spaces Dug . | . . . . . Terrain Destroyed 46 | . 3 3 . 40 Melee . | . . . . . Projectile . | . . . . . AOE 46 | . 3 3 . 40 Terrain Rammed . | . . . . . Walls Destroyed . | . . . . . Machines Disabled . | . . . . . Actions | -11 -10 -10 -10 -9 --------- Run | Yrd Mat Min Exi Min Total 2357 | 49 1020 583 218 487 Wait 192 | . 91 26 . 75 Move 2045 | 42 867 536 215 385 Hop . | . . . . . Pick Up 1 | . . . . 1 Fast Attach 10 | 6 2 1 1 . Attach . | . . . . . Detach . | . . . . . Swap 3 | 1 2 . . . Drop 2 | . . . 2 . Fire 54 | . 36 10 . 8 Melee . | . . . . . Ram . | . . . . . Kick . | . . . . . Crush . | . . . . . Escape Stasis . | . . . . . Rewire 9 | . 9 . . . Trap . | . . . . . Miscellaneous 41 | . 13 10 . 18 Route ------- -11/Scrapyard -10/Materials (discovered 5 exits: [*Mat x3] / [*Min x2]) -10/Mines (discovered 3 exits: [*Mat x2] / *Exi) -10/Exiles -9/Mines (discovered 2 exits: [*Mat x2]) History --------- Turn | Location | Event 1 | -11/Scrapyard | Upgraded with Power slot (x1) 1 | -11/Scrapyard | Upgraded with Propulsion slot (x1) 1 | -11/Scrapyard | Upgraded with Utility slot (x1) 1 | -11/Scrapyard | Upgraded with Weapon slot (x1) 24 | -11/Scrapyard | Discovered new exit (range 15) 49 | -11/Scrapyard | Entered Materials 122 | -10/Materials | Discovered new exit (range 6) 343 | -10/Materials | Discovered new exit (range 16) 465 | -10/Materials | Build established: Hacker-Mutant 499 | -10/Materials | Central database locked down 591 | -10/Materials | Discovered new exit (range 15) 624 | -10/Materials | Reached level 2 669 | -10/Materials | Discovered new exit (range 14) 796 | -10/Materials | Discovered new exit (range 15) 1057 | -10/Materials | Entered Mines 1104 | -10/Mines | Found a damaged Exp. Sensor Array with a note attached 1107 | -10/Mines | Upgraded with Utility slot (x1) 1110 | -10/Mines | Found Prototype Device 1110 | -10/Mines | Identified Exp. Sensor Array 1159 | -10/Mines | Reached level 3 1205 | -10/Mines | Discovered new exit (range 3) 1332 | -10/Mines | Learned Materials emergency access door positions 1385 | -10/Mines | Learned Materials non-interactive machine intel 1506 | -10/Mines | Deemed a non-threat by the Exiles lab entrance 1506 | -10/Mines | Discovered new exit (range 5) 1561 | -10/Mines | Discovered new exit (range 6) 1607 | -10/Mines | Entered Exiles 1630 | -10/Exiles | Met 8R-AWN 1645 | -10/Exiles | Met EX-HEX 1669 | -10/Exiles | Met EX-BIN 1681 | -10/Exiles | Aligned with FarCom system 1682 | -10/Exiles | Given EX-Vault access code 1704 | -10/Exiles | Opened EX-Vault 1709 | -10/Exiles | Found Latent Energy Streamer 1733 | -10/Exiles | Warned to stay clear of 0b10 Research branches 1807 | -10/Exiles | Discovered new exit (range 14) 1819 | -10/Exiles | Left Exiles lab with Latent Energy Streamer 1819 | -10/Exiles | Entered Mines 1821 | -9/Mines | Reached level 4 2110 | -9/Mines | YI-UF0 nonchalantly dropped a Grenade Launcher on the ground 2168 | -9/Mines | System corruption reached 10% 2188 | -9/Mines | Learned location of Zion (-6) 2211 | -9/Mines | Discovered new exit (range 11) 2258 | -9/Mines | Discovered new exit (range 11) 2319 | -9/Mines | Joined a pair of Derelicts in attacking an 0b10 outpost 2334 | -9/Mines | Self-destructed Last Messages --------------- 02306_ Beam Rifle fried. 02306_ Heat Sink fried. 02306_ Y-45 Defender destroyed. 02308_ System corrupted: Matter fused (-8). 02316_ U-05 Engineer lays Concrete. 02319_ A derelict emerges from the shadows: "We've had our eye on this brand new outpost for a little while, just waiting for an opportunity to strike. Need some help?" 02320_ U-05 Engineer lays Concrete. 02321_ U-05 Engineer builds a Wall. 02323_ U-05 Engineer lays Concrete. 02323_ Used Protomatter to restore core integrity (+28) 02325_ U-05 Engineer lays Concrete. 02326_ W& Map ----- +----------------------------------------------------+ | ????????????????????????????## ## #### | | ???????????? ???????????????# ###### | | ???????????? "?????????????# """ #???# | | ???????????? ?????????????# """ #???? | | ???????????? ?????????????# """ ### #???? | | ???????????? ?????????????###### """ ##?# #???? | | ???????????? ??????????????????## #??# #???? | | ???????????? ???????????????????#### #??# #???? | | ???????????? #?????????????????????## ##??# #???? | | ???????????? #??????????????????????###???# #???? | | ????????????# #????????????????????????????# #???? | | ????????????# #????????????????????????????# ##### | | ????????????# #????????????????????????????# | | ????????????# #?######?????#???????????????####### | | ??????#?????# ### [## #?????????????????????? | | ??????# ????# <% """""#####?????????????????? | | ###???# ????# ## % #?????????????????? | | #??# ????# ### #"""""### #?????????????????? | | #?# ???# #?######???? #?# #?????????????????# | | ## ???# #????#######???# #????????????????## | | ???# #???## # #???# #????????????????# | | # #??# #??## / ##??# #????????????????# | | # < ### #??# ] g #?## ##???????????????## | | # ##?# [ #??# ##???????????????# | | # #?#*%![% #### ##?????????????## | | ## #?###u ! @ ## ##########???## | | ?## ##?# [ ### ##### | | ??## #??# u #?## | | ???#### #### #??## ##### | | ??????## g #???##### #???######### | | ???????# #??????# #??????????# | | ???????# ## #??????# #??????????? | | ??????# """ ## #??????# #??????????? | | ?????# """ ## #?????? #??????????? | | ?????# """ ### #??????# #??????????? | | ?????# ##?##########??????######??????????? | | ?????## ######??????????????????????????????????? | | ??????###????????????????????????????????????????? | | ?????????????????????????????????????????????????? | | ?????????????????????????????????????????????????? | | | | | | | | | | | | | | | | | | | | | +----------------------------------------------------+ Best States ------------- Heat Dissipation 67 Energy Generation 20 Energy Capacity 200 Matter Stores 300 Matter Capacity 300 Sight Range 16 Robot Scan Range 20 Terrain Scan Density 10 Armor Coverage 300 Resistance: KI 20 Resistance: TH 20 Resistance: EX 20 Resistance: EM 20 Resistance: I 20 Resistance: S 20 Resistance: P 20 Evasion (%) 42 Offensive Hacking 20 Defensive Hacking 5 Item Schematics ----------------- None Robot Schematics ------------------ None Fabricated ------------ Nothing Alien Tech Used ----------------- None Achievements -------------- None Challenges ------------ None RPGLIKE | -11 -10 -10 -10 -9 --------- Run | Yrd Mat Min Exi Min Levels Raised 3 | . 1 1 . 1 XP Earned 9769 | 4000 2375 1350 350 1694 XP Spent 7320 | 2000 1570 800 . 2950 Upgrades 22 | 4 10 1 . 7 Power Slot 1 | 1 . . . . Propulsion Slot 1 | 1 . . . . Utility Slot 2 | 1 . 1 . . Weapon Slot 1 | 1 . . . . Heat Dissipation 7 | . 7 . . . Energy Generation 1 | . . . . 1 Energy Storage 1 | . . . . 1 Inventory Capacity 1 | . . . . 1 Ranged Accuracy 4 | . . . . 4 Hack Attack % 2 | . 2 . . . Hack Defense % 1 | . 1 . . . Protomatter Created 524 | . 240 65 . 219 Integrity Restored 558 | . 186 146 . 226 Core 339 | . 132 80 . 127 Parts 219 | . 54 66 . 99 Protomatter Decayed 290 | . 207 13 . 70 Game ------ Seed GrapheneCoolantArticulator Manual? 0 Play Time 00:18:05 Cumulative 174.6 hours Start 2024.10.22 @ 13:58:22 End 2024.10.22 @ 17:31:59 Sessions 2 Manual Loads 0 Difficulty Adventurer Special Mode Winter2019/RPGLIKE Game No. 88 Rogue 0 Adventurer 88 Explorer 0 Win Type - Total 7 Types 2/1/2/2/0/0/0/0/0 Lore% 71 Gallery% 64 Achievement% 73 Wizard Run 0 Options --------- Layout 2 ASCII 0 Keyboard 0 Movement Numpad Keybinds 0 Fullscreen 2 Font 24/Smallcaps Map View 50x44 Zoom Use 0% Tactical HUD 1 Map Filters NONE Filters NONE Steam 1 RUN: 0fb2da08-1838-4c7e-896c-10a24e8b2441